bitfinex/quotes_BTCUSD_20240717
["timestamp","ask_amount","ask_price","bid_price","bid_amount"]
[1721225265185,0.00837,64899.0,64880.0,0.002794]
[1721225265186,0.00837,64899.0,64886.0,0.246555]
[1721225265394,0.15409,64897.0,64886.0,0.09244]
[1721225265635,0.00837,64899.0,64886.0,0.09244]
[1721225265636,0.00837,64899.0,64887.0,0.15746338]
[1721225265866,0.00837,64899.0,64886.0,0.09244]
[1721225265867,0.00837,64899.0,64894.0,0.154096]
[1721225266070,0.00837,64899.0,64888.0,0.023]
[1721225266515,0.00837,64899.0,64894.0,0.154096]
[1721225266927,0.00837,64899.0,64894.0,0.308192]
[1721225267133,0.00837,64899.0,64898.0,0.462262]
[1721225267336,0.00837,64899.0,64898.0,0.84829053]
[1721225267542,0.00837,64899.0,64898.0,1.24236553]
[1721225267756,0.6,64919.0,64906.0,0.154067]
[1721225267963,0.308058,64923.0,64907.0,0.00308074]
[1721225267964,0.15438174,64918.0,64907.0,0.00308074]
[1721225268183,0.15438174,64918.0,64906.0,0.154067]
[1721225268184,0.14938174,64918.0,64906.0,0.154067]
[1721225268384,0.14938174,64918.0,64907.0,0.0798309]
[1721225268588,0.808088,64917.0,64907.0,0.002794]
[1721225268788,0.65438174,64917.0,64903.0,0.154074]
[1721225269003,0.154045,64916.0,64904.0,0.002794]
[1721225269208,0.154062,64909.0,64904.0,0.002794]
[1721225269411,0.15438174,64916.0,64899.0,0.002794]
[1721225269648,0.15438174,64916.0,64900.0,0.01715475]
[1721225269844,0.15404,64918.0,64905.0,0.15407]
[1721225270047,0.15404,64918.0,64906.0,0.00587475]
[1721225270048,0.15438174,64917.0,64906.0,0.00587475]
[1721225270871,0.15438174,64917.0,64906.0,0.002794]
[1721225271079,0.154065,64908.0,64902.0,0.002794]
[1721225271289,0.15438174,64917.0,64902.0,0.002794]
[1721225271290,0.607928,64903.0,64902.0,0.002794]
[1721225271497,0.607928,64903.0,64878.0,0.063]
[1721225271498,0.308216,64890.0,64878.0,0.063]
[1721225271698,0.308216,64890.0,64889.0,0.46304871]
[1721225271699,0.92492274,64890.0,64889.0,0.46304871]
[1721225271896,0.92492274,64890.0,64878.0,0.0775394]
[1721225271897,0.308219,64889.0,64878.0,0.0775394]
[1721225272138,0.154118,64886.0,64879.0,0.002794]
[1721225272343,0.15438174,64890.0,64879.0,0.002794]
[1721225272600,0.7457,64903.0,64880.0,0.00308206]
[1721225272798,0.7457,64903.0,64881.0,0.01909555]
[1721225272799,0.154101,64893.0,64881.0,0.01909555]
[1721225273000,0.154093,64896.0,64882.0,0.0030819]
[1721225273207,0.7457,64903.0,64883.0,0.002794]
[1721225273208,0.6,64903.0,64883.0,0.002794]
[1721225273409,0.25438174,64902.0,64884.0,0.308241]
[1721225273619,0.25438174,64902.0,64885.0,0.002794]
[1721225273835,0.154094,64896.0,64885.0,0.03273546]
[1721225274025,0.308162,64901.0,64886.0,0.002794]
[1721225274165,0.25438174,64902.0,64886.0,0.002794]
[1721225274166,0.154089,64898.0,64886.0,0.002794]
[1721225274366,0.15438174,64900.0,64886.0,0.002794]
[1721225274367,0.1,64897.0,64886.0,0.002794]
[1721225274574,0.15438174,64896.0,64886.0,0.002794]
[1721225274798,0.15438174,64896.0,64883.0,0.001]
[1721225274799,0.154106,64891.0,64884.0,0.002794]
[1721225275045,0.154097,64894.0,64884.0,0.002794]
[1721225275253,0.308195,64894.0,64885.0,0.01732226]
[1721225275441,0.308195,64894.0,64881.0,0.01630155]
[1721225275442,0.154107,64890.0,64886.0,0.002794]
[1721225275634,0.15438174,64896.0,64882.0,0.002794]
[1721225275635,0.154103,64892.0,64882.0,0.002794]
[1721225275842,0.308205,64892.0,64882.0,0.002794]
[1721225276167,0.15438174,64896.0,64882.0,0.002794]
[1721225276168,0.154123,64883.0,64882.0,0.002794]
[1721225276367,0.308228,64887.0,64879.0,0.002794]
[1721225276368,0.154121,64884.0,64879.0,0.002794]
[1721225276540,0.154118,64886.0,64879.0,0.002794]
[1721225276745,0.308228,64887.0,64879.0,0.002794]
[1721225276746,0.154119,64885.0,64879.0,0.002794]
[1721225276948,0.30861313,64884.0,64879.0,0.002794]
[1721225277149,0.30861313,64884.0,64863.0,0.0619]
[1721225277150,0.40861313,64884.0,64863.0,0.0619]
[1721225277347,0.154153,64871.0,64864.0,0.002794]
[1721225277702,0.40861313,64884.0,64882.0,0.003]
[1721225277703,1.526011,64883.0,64882.0,0.003]
[1721225278124,1.78039274,64883.0,64882.0,0.003]
[1721225278344,0.308299,64872.0,64852.0,0.154196]
[1721225278547,0.308299,64872.0,64863.0,0.001]
[1721225278548,0.308322,64868.0,64863.0,0.001]
[1721225278765,0.308299,64872.0,64863.0,0.001]
[1721225278766,0.154159,64869.0,64863.0,0.001]
[1721225278981,0.154145,64874.0,64864.0,0.002794]
[1721225279193,0.308284,64876.0,64864.0,0.002794]
[1721225279401,0.308284,64876.0,64863.0,0.001]
[1721225279402,0.154168,64864.0,64863.0,0.001]
[1721225279654,0.6,64875.0,64863.0,0.001]
[1721225279655,0.908289,64875.0,64863.0,0.001]
[1721225279862,0.06840912,64932.0,64874.0,0.154142]
[1721225279863,0.154114,64887.0,64874.0,0.154142]
[1721225280061,0.154114,64887.0,64864.0,0.29697574]
[1721225280062,0.154122,64884.0,64875.0,0.0154142]
[1721225280275,0.1,64886.0,64882.0,0.001]
[1721225280689,0.254118,64886.0,64871.0,0.15415]
[1721225280891,0.154119,64885.0,64872.0,0.002794]
[1721225281110,0.15412,64885.0,64872.0,0.09562467]
[1721225281323,0.1,64886.0,64871.0,0.3083]
[1721225281324,0.154121,64884.0,64871.0,0.3083]
[1721225281540,0.0625,64901.0,64881.0,0.0629]
[1721225281747,0.154117,64886.0,64882.0,0.002794]
[1721225281950,0.154117,64886.0,64881.0,0.0629]
[1721225282150,0.154114,64887.0,64882.0,0.002794]
[1721225282364,0.308248,64883.0,64876.0,0.0629]
[1721225282579,0.308167,64900.0,64874.0,0.001]
[1721225282580,0.23155653,64882.0,64874.0,0.001]
[1721225282812,0.462427,64875.0,64874.0,0.00092178]
[1721225282998,0.61680874,64875.0,64874.0,0.00092178]
[1721225283207,0.46266674,64875.0,64865.0,0.002794]
[1721225283413,0.308298,64873.0,64865.0,0.002794]
[1721225283619,0.154148,64873.0,64865.0,0.002794]
[1721225283821,0.1,64888.0,64867.0,0.002794]
[1721225284022,0.308202,64893.0,64869.0,0.002794]
[1721225284023,0.15438174,64884.0,64869.0,0.002794]
[1721225284246,0.15438174,64884.0,64871.0,0.002794]
[1721225284451,0.1,64883.0,64871.0,0.154151]
[1721225284666,0.1,64883.0,64868.0,0.308313]
[1721225284667,0.25438174,64883.0,64874.0,0.154144]
[1721225284896,0.25438174,64883.0,64875.0,0.13081259]
[1721225285100,0.25438174,64883.0,64876.0,0.12801859]
[1721225285301,0.154105,64891.0,64878.0,0.002794]
[1721225285515,0.5,64894.0,64879.0,0.12801859]
[1721225285721,0.15438174,64893.0,64880.0,0.13081259]
[1721225285922,0.15411,64889.0,64881.0,0.12801859]
[1721225286124,0.15411,64889.0,64882.0,0.13081259]
[1721225286125,0.15412,64885.0,64882.0,0.13081259]
[1721225286310,0.15438174,64893.0,64882.0,0.002794]
[1721225286436,0.15438174,64893.0,64884.0,0.002794]
[1721225286437,0.15411,64889.0,64884.0,0.002794]
[1721225286871,0.15438174,64893.0,64881.0,0.02780126]
[1721225286872,0.15438174,64893.0,64885.0,0.00308208]
[1721225287120,0.50084,64899.0,64886.0,0.13108036]
[1721225287320,0.154093,64896.0,64887.0,0.14138591]
[1721225287534,0.25438174,64898.0,64888.0,0.13079247]
[1721225287742,0.154095,64895.0,64889.0,0.12799847]
[1721225287972,0.154095,64895.0,64890.0,0.12799847]
[1721225288164,0.154095,64895.0,64891.0,0.12799847]
[1721225288368,0.154095,64895.0,64892.0,0.12799847]
[1721225288568,0.154097,64894.0,64893.0,0.12799847]
[1721225288769,0.154095,64895.0,64893.0,0.12799847]
[1721225288977,0.25438174,64898.0,64881.0,0.33605626]
[1721225288978,0.1,64898.0,64889.0,0.154107]
[1721225289202,0.00084,64899.0,64891.0,0.002794]
[1721225289402,0.00084,64899.0,64893.0,0.002794]
[1721225289660,0.00084,64899.0,64896.0,0.0611]
[1721225289858,0.00084,64899.0,64897.0,0.002794]
[1721225290466,0.00084,64899.0,64886.0,0.002794]
[1721225290467,0.15438174,64898.0,64886.0,0.002794]
[1721225290611,0.15438174,64898.0,64887.0,0.12798173]
[1721225290612,0.308191,64895.0,64887.0,0.12798173]
[1721225290815,0.15438174,64898.0,64888.0,0.1500839]
[1721225290816,0.154094,64896.0,64888.0,0.1500839]
[1721225291041,0.00084,64899.0,64889.0,0.12798173]
[1721225291042,0.154105,64891.0,64889.0,0.12798173]
[1721225291242,0.46257174,64895.0,64885.0,0.0651]
[1721225291243,0.1541,64893.0,64890.0,0.13077573]
[1721225291460,0.15438174,64895.0,64891.0,0.12798173]
[1721225291658,0.15438174,64895.0,64892.0,0.002794]
[1721225291659,0.154098,64894.0,64892.0,0.002794]
[1721225291862,0.15438174,64895.0,64886.0,0.002794]
[1721225292178,0.154111,64888.0,64887.0,0.12798626]
[1721225292387,0.30849274,64888.0,64887.0,0.12798626]
[1721225292585,0.30849274,64888.0,64878.0,0.0657]
[1721225292586,0.15412,64885.0,64878.0,0.0657]
[1721225292961,0.15438174,64888.0,64879.0,0.002794]
[1721225293138,0.308205,64892.0,64880.0,0.12800192]
[1721225293139,0.15412,64885.0,64880.0,0.12800192]
[1721225293308,0.15412,64885.0,64878.0,0.0958946]
[1721225293309,0.15412,64885.0,64881.0,0.13079592]
[1721225293510,0.154121,64884.0,64879.0,0.002794]
[1721225293719,0.154118,64885.0,64881.0,0.002794]
[1721225293930,0.154118,64885.0,64877.0,0.0821]
[1721225293931,0.154119,64885.0,64882.0,0.02128987]
[1721225294129,0.154119,64885.0,64878.0,0.002794]
[1721225294130,0.308237,64886.0,64878.0,0.002794]
[1721225294465,0.308237,64886.0,64868.0,0.32679173]
[1721225294466,0.154128,64881.0,64880.0,0.002794]
[1721225294792,0.154128,64881.0,64856.0,0.04570417]
[1721225294793,0.308317,64869.0,64866.0,0.002794]
[1721225294972,0.5,64884.0,64869.0,0.46304871]
[1721225294973,0.154155,64870.0,64869.0,0.46304871]
[1721225295095,0.154158,64869.0,64866.0,0.002794]
[1721225295301,0.154152,64871.0,64866.0,0.002794]
[1721225295503,0.154152,64871.0,64865.0,0.06]
[1721225295504,0.15438174,64880.0,64865.0,0.06]
[1721225295730,0.15,64885.0,64859.0,0.002794]
[1721225295731,0.308337,64864.0,64859.0,0.0648]
[1721225295930,0.308337,64864.0,64852.0,0.002794]
[1721225295931,0.92522374,64864.0,64852.0,0.002794]
[1721225296142,1.23356074,64864.0,64852.0,0.002794]
[1721225296369,1.23356074,64864.0,64853.0,0.002794]
[1721225296573,0.92522374,64864.0,64853.0,0.002794]
[1721225296779,0.92522374,64864.0,64852.0,0.002794]
[1721225296984,0.92522374,64864.0,64851.0,0.0648]
[1721225297904,1.23356074,64864.0,64851.0,0.0648]
[1721225298128,0.92522374,64864.0,64852.0,0.002794]
[1721225298543,0.154168,64864.0,64852.0,0.0058774]
[1721225298896,0.46246134,64864.0,64863.0,0.001924]
[1721225299097,0.1399,64895.0,64864.0,0.1398]
[1721225299309,0.1399,64895.0,64865.0,0.22216915]
[1721225299310,0.5,64888.0,64865.0,0.22216915]
[1721225299502,0.154125,64883.0,64871.0,0.15415]
[1721225299685,0.5,64884.0,64865.0,0.0169664]
[1721225299686,0.154134,64879.0,64872.0,0.13082196]
[1721225299884,0.15438174,64882.0,64873.0,0.1280147]
[1721225300093,0.5,64884.0,64874.0,0.28495081]
[1721225300463,0.5,64884.0,64876.0,0.002794]
[1721225300464,0.154126,64882.0,64876.0,0.002794]
[1721225300602,0.308228,64887.0,64876.0,0.002794]
[1721225300803,0.15438174,64887.0,64874.0,0.308286]
[1721225301004,0.15438174,64887.0,64877.0,0.154136]
[1721225301217,0.15438174,64887.0,64875.0,0.13109561]
[1721225301218,0.308213,64891.0,64879.0,0.002794]
[1721225301420,0.154112,64888.0,64881.0,0.002794]
[1721225301620,0.5,64889.0,64881.0,0.002794]
[1721225301621,0.15438174,64887.0,64881.0,0.002794]
[1721225301834,0.15438174,64887.0,64874.0,0.002794]
[1721225301835,0.308251,64882.0,64874.0,0.002794]
[1721225302034,0.5,64889.0,64873.0,0.0605]
[1721225302035,0.5,64889.0,64876.0,0.156933]
[1721225302265,0.5,64889.0,64873.0,0.0605]
[1721225302266,0.15438174,64888.0,64878.0,0.002794]
[1721225302459,0.308266,64879.0,64874.0,0.002794]
[1721225302649,0.14261296,64887.0,64874.0,0.002794]
[1721225302650,0.154142,64875.0,64874.0,0.002794]
[1721225302851,0.154142,64875.0,64866.0,0.0624]
[1721225302852,0.770807,64867.0,64866.0,0.002794]
[1721225303063,0.770807,64867.0,64863.0,0.000924]
[1721225303064,0.770842,64864.0,64863.0,0.000924]
[1721225303255,1.23356074,64864.0,64863.0,0.000924]
[1721225303481,1.68239774,64864.0,64863.0,0.000924]
[1721225303879,1.78239774,64864.0,64863.0,0.000924]
[1721225304088,1.47406074,64864.0,64863.0,0.000924]
[1721225304288,0.30854974,64864.0,64863.0,0.000924]
[1721225304510,0.92522374,64864.0,64863.0,0.000924]
[1721225304737,1.23356074,64864.0,64863.0,0.001924]
[1721225304871,1.33356074,64864.0,64863.0,0.001924]
[1721225306014,1.33356074,64864.0,64863.0,0.000924]
[1721225306399,1.33356074,64864.0,64863.0,0.001924]
[1721225307299,1.33356074,64864.0,64863.0,0.000924]
[1721225307654,1.64189774,64864.0,64863.0,0.000924]
[1721225307852,0.0769,64879.0,64863.0,0.001924]
[1721225307972,0.15438174,64875.0,64863.0,0.001924]
[1721225308199,0.308297,64873.0,64863.0,0.001924]
[1721225308451,0.15438174,64872.0,64863.0,0.001924]
[1721225308691,0.154162,64867.0,64864.0,0.002794]
[1721225308993,0.308306,64871.0,64863.0,0.001924]
[1721225308994,0.154152,64871.0,64863.0,0.001924]
[1721225309276,0.308291,64874.0,64863.0,0.001924]
[1721225309277,0.154166,64865.0,64863.0,0.001924]
[1721225309679,0.1,64877.0,64863.0,0.001924]
[1721225309680,0.61688674,64864.0,64863.0,0.001924]
[1721225310364,0.92522374,64864.0,64863.0,0.000924]
[1721225310552,2.06358121,64864.0,64863.0,0.000924]
[1721225310882,2.30352686,64864.0,64863.0,0.000924]
[1721225311082,2.66186386,64864.0,64863.0,0.000924]
[1721225311491,3.0333891,64864.0,64863.0,0.000924]
[1721225311696,2.91677491,64864.0,64863.0,0.000924]
[1721225311933,2.8337711,64864.0,64863.0,0.000924]
[1721225312124,2.8337711,64864.0,64863.0,0.001924]
[1721225312326,3.12676251,64864.0,64863.0,0.001924]
[1721225312529,2.60612551,64864.0,64863.0,0.001924]
[1721225312884,2.61019367,64864.0,64863.0,0.001924]
[1721225313004,2.39475779,64864.0,64863.0,0.001924]
[1721225313214,2.30352686,64864.0,64863.0,0.001924]
[1721225313439,2.35352686,64864.0,64863.0,0.001924]
[1721225313787,2.84410286,64864.0,64863.0,0.001924]
[1721225313917,2.81621343,64864.0,64863.0,0.001924]
[1721225314319,2.98497343,64864.0,64863.0,0.000924]
[1721225314520,3.55932043,64864.0,64863.0,0.001001]
[1721225314732,3.56892841,64864.0,64863.0,0.001001]
[1721225314959,3.71943232,64864.0,64863.0,1e-06]
[1721225315164,0.46272,64834.0,64833.0,0.002794]
[1721225315373,0.46272,64834.0,64832.0,0.46304871]
[1721225315375,0.462726,64833.0,64832.0,0.46304871]
[1721225315581,0.462726,64833.0,64825.0,0.0618]
[1721225315582,0.154259,64826.0,64825.0,0.0618]
[1721225316408,0.154259,64826.0,64817.0,0.009196]
[1721225316409,0.154278,64818.0,64817.0,0.009196]
[1721225316605,0.462834,64818.0,64817.0,0.009196]
[1721225317148,0.154278,64818.0,64817.0,0.009196]
[1721225317305,0.462834,64818.0,64817.0,0.009196]
[1721225317508,0.92577174,64818.0,64817.0,0.009196]
[1721225318415,0.92977174,64818.0,64817.0,0.009196]
[1721225320222,0.62121574,64818.0,64817.0,0.009196]
[1721225320877,0.004,64818.0,64817.0,0.009196]
[1721225321078,0.466834,64818.0,64817.0,0.009196]
[1721225321338,0.158278,64818.0,64817.0,0.009196]
[1721225321545,0.312556,64818.0,64817.0,0.009196]
[1721225321780,0.154278,64818.0,64817.0,0.009196]
[1721225321986,0.1,64826.0,64817.0,0.009196]
[1721225322197,0.05,64843.0,64818.0,0.00587917]
[1721225322198,0.30854,64822.0,64818.0,0.00587917]
[1721225322401,0.15438174,64825.0,64817.0,0.01228125]
[1721225322402,0.30864474,64825.0,64817.0,0.01228125]
[1721225322660,0.1,64834.0,64817.0,0.01228125]
[1721225322661,0.1,64834.0,64818.0,0.002794]
[1721225322903,0.57717479,64841.0,64818.0,0.002794]
[1721225322904,0.308511,64828.0,64818.0,0.002794]
[1721225323102,0.004,64818.0,64817.0,0.009196]
[1721225323406,0.004,64818.0,64817.0,0.0325441]
[1721225323665,0.004,64818.0,64817.0,1.12701286]
[1721225323824,0.08162369,64843.0,64817.0,1.12701286]
[1721225323825,0.154219,64843.0,64834.0,0.1426]
[1721225324070,0.308426,64846.0,64834.0,0.1426]
[1721225324071,0.154205,64849.0,64836.0,0.154233]
[1721225324282,0.0665,64857.0,64834.0,0.1426]
[1721225324283,0.5,64862.0,64837.0,0.00308404]
[1721225324600,0.51304871,64874.0,64837.0,0.00308404]
[1721225324601,0.30837,64858.0,64843.0,0.154218]
[1721225324845,0.00083,64864.0,64850.0,0.154201]
[1721225325094,0.00083,64864.0,64844.0,0.14568343]
[1721225325095,0.00083,64864.0,64851.0,0.00308326]
[1721225325096,0.30855274,64863.0,64851.0,0.00308326]
[1721225325385,0.00083,64864.0,64851.0,0.00308326]
[1721225325557,0.00083,64864.0,64848.0,0.308412]
[1721225325558,0.00083,64864.0,64852.0,0.18017574]
[1721225325755,0.00083,64864.0,64863.0,0.154171]
[1721225326067,0.00083,64864.0,64863.0,0.462513]
[1721225326286,0.00083,64864.0,64863.0,0.914155]
[1721225326491,0.154119,64885.0,64872.0,0.154148]
[1721225326695,0.154119,64885.0,64863.0,0.75704387]
[1721225326696,0.30850074,64885.0,64871.0,0.308303]
[1721225326880,0.154121,64884.0,64872.0,0.0308303]
[1721225327086,0.154121,64884.0,64871.0,0.154149]
[1721225327410,0.154121,64884.0,64863.0,0.29768174]
[1721225327411,0.154141,64876.0,64863.0,0.29747]
[1721225327697,0.07717479,64886.0,64864.0,0.002794]
[1721225327698,0.308296,64873.0,64864.0,0.002794]
[1721225327810,0.154155,64870.0,64864.0,0.002794]
[1721225328020,0.154155,64870.0,64863.0,0.1433]
[1721225328021,0.15438174,64870.0,64863.0,0.1433]
[1721225328216,0.154168,64864.0,64863.0,0.01433]
[1721225328423,0.154168,64864.0,64852.0,0.002794]
[1721225328424,0.154194,64853.0,64852.0,0.002794]
[1721225328617,0.154194,64853.0,64851.0,0.001]
[1721225328618,0.462591,64852.0,64851.0,0.001]
[1721225328852,0.61697274,64852.0,64851.0,0.001]
[1721225329050,0.308377,64856.0,64844.0,0.002794]
[1721225329051,0.15419,64856.0,64844.0,0.002794]
[1721225329265,0.0635,64863.0,64843.0,0.0773]
[1721225329266,0.25438174,64855.0,64845.0,0.03916258]
[1721225329464,0.25438174,64855.0,64844.0,0.002794]
[1721225329465,0.154196,64853.0,64844.0,0.002794]
[1721225329875,0.15438174,64852.0,64844.0,0.002794]
[1721225330080,0.308405,64850.0,64844.0,0.002794]
[1721225330300,0.154205,64849.0,64844.0,0.002794]
[1721225330678,0.154208,64848.0,64843.0,0.0773]
[1721225330891,0.2446,64874.0,64845.0,0.0609]
[1721225331108,0.308339,64864.0,64846.0,0.002794]
[1721225331316,0.154176,64861.0,64848.0,0.154205]
[1721225331529,0.1,64873.0,64849.0,0.002794]
[1721225331730,0.15438174,64872.0,64846.0,0.002794]
[1721225331940,0.15438174,64872.0,64847.0,0.0155094]
[1721225331941,0.154184,64858.0,64847.0,0.0155094]
[1721225332148,0.154176,64861.0,64848.0,0.156999]
[1721225332353,0.308344,64863.0,64848.0,0.156999]
[1721225332558,0.154183,64858.0,64848.0,0.002794]
[1721225332788,0.308348,64862.0,64848.0,0.002794]
[1721225332995,0.002,64855.0,64850.0,0.154201]
[1721225333200,0.002,64855.0,64851.0,0.002794]
[1721225333404,0.002,64855.0,64854.0,0.462576]
[1721225333605,0.002,64855.0,64854.0,0.539076]
[1721225333805,0.002,64855.0,64854.0,0.292092]
[1721225334016,0.408308,64871.0,64854.0,0.292092]
[1721225334017,0.408308,64871.0,64855.0,0.154187]
[1721225334223,0.408308,64871.0,64854.0,0.51171643]
[1721225334224,0.308315,64869.0,64856.0,0.002794]
[1721225334428,0.1,64871.0,64837.0,0.05]
[1721225334429,0.154174,64862.0,64855.0,0.002794]
[1721225334636,0.154174,64862.0,64847.0,0.0642]
[1721225334637,0.15438174,64868.0,64851.0,0.00587734]
[1721225334842,0.154164,64866.0,64856.0,0.00308334]
[1721225335048,0.1,64867.0,64856.0,0.00308334]
[1721225335049,0.254163,64867.0,64857.0,0.002794]
[1721225335278,0.154145,64874.0,64861.0,0.154174]
[1721225335613,0.25438174,64873.0,64863.0,0.002794]
[1721225335814,0.25438174,64873.0,64861.0,0.002794]
[1721225335815,0.1,64873.0,64861.0,0.002794]
[1721225335983,0.154149,64872.0,64862.0,0.0475663]
[1721225336187,0.154149,64872.0,64863.0,0.002794]
[1721225336399,0.1,64873.0,64863.0,0.002794]
[1721225336935,0.1,64873.0,64859.0,0.1415]
[1721225336936,0.07717479,64877.0,64864.0,0.002794]
[1721225337143,0.07717479,64877.0,64860.0,0.002794]
[1721225337144,0.154167,64865.0,64860.0,0.002794]
[1721225337348,0.308335,64865.0,64860.0,0.002794]
[1721225337551,0.308335,64865.0,64837.0,0.2]
[1721225337552,0.154177,64861.0,64852.0,0.0613]
[1721225337735,0.15438174,64864.0,64853.0,0.002794]
[1721225337736,0.154178,64860.0,64853.0,0.002794]
[1721225337935,0.154178,64860.0,64857.0,0.001]
[1721225338146,0.308338,64864.0,64857.0,0.001]
[1721225338264,0.008,64867.0,64857.0,0.001]
[1721225338265,0.07717479,64862.0,64857.0,0.001]
[1721225338464,0.07717479,64862.0,64852.0,0.0613]
[1721225338465,0.154193,64854.0,64852.0,0.0613]
[1721225338878,0.308374,64857.0,64843.0,0.142194]
[1721225338879,0.154195,64853.0,64843.0,0.142194]
[1721225339270,0.154195,64853.0,64852.0,0.001]
[1721225339449,0.92535474,64853.0,64852.0,0.001]
[1721225340202,1.33374374,64853.0,64852.0,0.001]
[1721225340979,0.71696574,64853.0,64852.0,0.001]
[1721225341399,1.33374374,64853.0,64852.0,0.001]
[1721225341806,1.55065102,64853.0,64852.0,0.001]
[1721225342157,1.55065102,64853.0,64835.0,0.1422]
[1721225342158,0.308408,64850.0,64835.0,0.1422]
[1721225342356,0.154207,64848.0,64839.0,0.002794]
[1721225342558,0.1,64852.0,64839.0,0.00308395]
[1721225342559,0.154204,64850.0,64839.0,0.00308395]
[1721225342760,0.308404,64850.0,64840.0,0.002794]
[1721225342959,0.308404,64850.0,64836.0,0.154234]
[1721225342960,0.308404,64850.0,64837.0,0.002794]
[1721225343159,0.308404,64850.0,64836.0,0.154234]
[1721225343160,0.308404,64850.0,64839.0,0.002794]
[1721225343367,0.408398,64852.0,64841.0,0.002794]
[1721225343368,0.154205,64849.0,64841.0,0.002794]
[1721225343580,0.30837,64858.0,64838.0,0.2458479]
[1721225343581,0.154178,64860.0,64844.0,0.308431]
[1721225343737,0.154178,64860.0,64838.0,0.0916179]
[1721225343738,0.154169,64864.0,64850.0,0.308401]
[1721225343942,0.1392,64877.0,64853.0,0.002794]
[1721225343943,0.154171,64863.0,64853.0,0.002794]
[1721225344183,0.154171,64863.0,64845.0,0.31738174]
[1721225344184,0.154178,64860.0,64848.0,0.154205]
[1721225344400,0.308342,64863.0,64849.0,0.04743807]
[1721225344401,0.154172,64863.0,64849.0,0.04743807]
[1721225344615,0.154172,64863.0,64850.0,0.156995]
[1721225344616,0.154175,64862.0,64850.0,0.156995]
[1721225344843,0.308334,64865.0,64851.0,0.154199]
[1721225345125,0.154175,64862.0,64852.0,0.002794]
[1721225345332,0.154175,64862.0,64850.0,0.154201]
[1721225345333,0.154175,64862.0,64851.0,0.002794]
[1721225345571,0.154175,64862.0,64852.0,0.05128431]
[1721225345833,0.154175,64862.0,64853.0,0.002794]
[1721225346515,0.308342,64863.0,64853.0,0.002794]
[1721225346516,0.154177,64861.0,64853.0,0.002794]
[1721225346709,0.154173,64862.0,64853.0,0.002794]
[1721225346934,0.154173,64862.0,64854.0,0.01045997]
[1721225347153,0.308359,64860.0,64855.0,0.002794]
[1721225347355,0.006,64862.0,64855.0,0.002794]
[1721225347558,0.006,64862.0,64852.0,0.001]
[1721225347559,0.07717479,64860.0,64852.0,0.001]
[1721225348005,0.84814679,64853.0,64852.0,0.001]
[1721225348013,1.079361,64853.0,64852.0,0.001]
[1721225348237,1.23374274,64853.0,64852.0,0.001]
[1721225348523,1.23374274,64853.0,64830.0,0.372591]
[1721225348524,0.30842,64847.0,64832.0,0.002794]
[1721225348761,0.25438174,64853.0,64838.0,0.46304871]
[1721225348762,0.154225,64841.0,64838.0,0.46304871]
[1721225348999,0.154219,64843.0,64833.0,0.01645877]
[1721225349234,0.154219,64843.0,64834.0,0.002794]
[1721225349469,0.308432,64844.0,64834.0,0.002794]
[1721225349714,0.154223,64841.0,64834.0,0.002794]
[1721225349951,0.154221,64842.0,64835.0,0.02348018]
[1721225350191,0.154221,64842.0,64836.0,0.002794]
[1721225351568,0.154227,64840.0,64836.0,0.002794]
[1721225351806,0.25438174,64853.0,64834.0,0.007]
[1721225351807,0.462712,64835.0,64834.0,0.007]
[1721225352254,0.462712,64835.0,64829.0,0.01849365]
[1721225352255,0.462748,64830.0,64829.0,0.01849365]
[1721225352480,1.23412774,64830.0,64829.0,0.01849365]
[1721225352946,0.92562874,64830.0,64829.0,0.01849365]
[1721225353650,0.308471,64836.0,64829.0,0.01849365]
[1721225353911,0.0652,64846.0,64829.0,0.01849365]
[1721225353912,0.155249,64830.0,64829.0,0.01849365]
[1721225354129,0.001,64830.0,64829.0,0.17274465]
[1721225354354,0.001,64830.0,64829.0,0.06662012]
[1721225354597,0.001,64830.0,64829.0,0.17274465]
[1721225354869,0.001,64830.0,64829.0,0.48124765]
[1721225355082,0.001,64830.0,64829.0,0.62894765]
[1721225355305,0.001,64830.0,64829.0,1.09633874]
[1721225355603,0.001,64830.0,64829.0,0.78783574]
[1721225355838,0.001,64830.0,64829.0,1.38906625]
[1721225356123,0.4784,64860.0,64829.0,1.38906625]
[1721225356124,0.4784,64860.0,64844.0,0.1412]
[1721225356365,0.308321,64868.0,64846.0,0.308421]
[1721225356589,0.308321,64868.0,64845.0,0.18017574]
[1721225356590,0.15438174,64869.0,64854.0,0.308383]
[1721225356813,0.308321,64868.0,64855.0,0.06476116]
[1721225357022,0.308302,64872.0,64855.0,0.06476116]
[1721225357229,0.308302,64872.0,64859.0,0.154178]
[1721225357439,0.308302,64872.0,64860.0,0.02189392]
[1721225357640,0.0622,64876.0,64861.0,0.1443]
[1721225357854,0.07717479,64872.0,64861.0,0.1443]
[1721225358072,0.07717479,64865.0,64861.0,0.1443]
[1721225358277,0.308332,64866.0,64861.0,0.1443]
[1721225358488,0.154166,64865.0,64861.0,0.1443]
[1721225358713,0.154191,64855.0,64852.0,0.0633]
[1721225358914,0.23155653,64865.0,64853.0,0.01438]
[1721225358915,0.154187,64857.0,64853.0,0.01438]
[1721225359346,0.462627,64847.0,64846.0,0.002794]
[1721225359544,0.23155653,64856.0,64844.0,0.001]
[1721225359545,0.15438174,64856.0,64844.0,0.001]
[1721225359756,0.15438174,64856.0,64845.0,0.0030837]
[1721225359757,0.3084,64851.0,64845.0,0.0030837]
[1721225359910,0.154199,64851.0,64840.0,0.00587782]
[1721225360115,0.15438174,64856.0,64841.0,0.06123698]
[1721225360116,0.07717479,64850.0,64841.0,0.06123698]
[1721225360319,0.07717479,64850.0,64839.0,0.0805]